bitfinex/quotes_BTCUSD_20240911
["timestamp","ask_amount","ask_price","bid_price","bid_amount"]
[1726017573917,0.0621,57752.0,57751.0,0.18474195]
[1726017574132,0.0621,57752.0,57751.0,0.173157]
[1726017574343,0.0621,57752.0,57751.0,0.18374195]
[1726017574554,0.0621,57752.0,57751.0,0.173157]
[1726017574793,0.0631,57752.0,57751.0,0.173157]
[1726017574989,0.0651,57752.0,57751.0,0.173157]
[1726017575209,0.0641,57752.0,57751.0,0.173157]
[1726017575432,0.0601,57752.0,57751.0,0.173157]
[1726017575652,0.0631,57752.0,57751.0,0.174157]
[1726017576087,0.0621,57752.0,57751.0,0.174157]
[1726017576342,0.0631,57752.0,57751.0,0.174157]
[1726017576787,0.0631,57752.0,57751.0,0.173157]
[1726017576788,0.0611,57752.0,57751.0,0.173157]
[1726017577004,0.001,57752.0,57751.0,0.173157]
[1726017577221,0.003,57752.0,57751.0,0.1847157]
[1726017577936,0.001,57752.0,57751.0,0.1837157]
[1726017578146,0.0601,57760.0,57759.0,0.173133]
[1726017578375,0.0031706,57761.0,57760.0,0.17313]
[1726017578852,0.0031706,57761.0,57760.0,0.18361838]
[1726017580915,0.0031706,57761.0,57760.0,0.18761838]
[1726017581818,0.0031706,57761.0,57760.0,0.19561838]
[1726017582540,0.0031706,57761.0,57760.0,0.27541838]
[1726017582766,0.0031706,57761.0,57760.0,0.70072465]
[1726017586633,0.0031706,57761.0,57760.0,0.70272465]
[1726017587792,0.0031706,57761.0,57760.0,0.54032035]
[1726017590424,0.0031706,57761.0,57760.0,0.19561838]
[1726017592411,0.0031706,57761.0,57760.0,0.18761838]
[1726017592641,0.0031706,57761.0,57760.0,0.18661838]
[1726017594028,0.0041706,57761.0,57760.0,0.18361838]
[1726017594263,0.0041706,57761.0,57760.0,0.18661838]
[1726017594720,0.0041706,57761.0,57760.0,0.18361838]
[1726017595226,0.0041706,57761.0,57760.0,0.18761838]
[1726017595455,0.0031706,57761.0,57760.0,0.18761838]
[1726017595667,0.0031706,57761.0,57760.0,0.19061838]
[1726017596594,0.0031706,57761.0,57760.0,0.20361838]
[1726017597010,0.0031706,57761.0,57760.0,0.19661838]
[1726017597445,0.0031706,57761.0,57760.0,0.20561838]
[1726017601248,0.0031706,57761.0,57760.0,0.03248838]
[1726017601249,0.0661706,57761.0,57760.0,0.03248838]
[1726017601651,0.2392976,57761.0,57760.0,0.022]
[1726017601869,0.0661706,57761.0,57760.0,0.022]
[1726017602105,0.5855516,57761.0,57760.0,0.022]
[1726017603491,0.2392976,57761.0,57760.0,0.022]
[1726017603708,0.5855516,57761.0,57760.0,0.022]
[1726017604828,0.2392976,57761.0,57760.0,0.022]
[1726017605041,0.5855516,57761.0,57760.0,0.022]
[1726017605258,0.2392976,57761.0,57760.0,0.022]
[1726017605911,0.5855516,57761.0,57760.0,0.022]
[1726017606141,0.2392976,57761.0,57760.0,0.022]
[1726017606819,0.5855516,57761.0,57760.0,0.022]
[1726017608361,0.2392976,57761.0,57760.0,0.022]
[1726017608588,0.0661706,57761.0,57760.0,0.022]
[1726017608798,0.2392976,57761.0,57760.0,0.022]
[1726017609277,0.0031706,57761.0,57760.0,0.19513]
[1726017609711,0.0031706,57761.0,57760.0,0.20533532]
[1726017609961,0.0031706,57761.0,57760.0,0.2317976]
[1726017610678,0.0031706,57761.0,57760.0,0.56803778]
[1726017610898,0.0031706,57761.0,57760.0,0.64503778]
[1726017612202,0.0031706,57761.0,57760.0,0.30533532]
[1726017615633,0.0031706,57761.0,57760.0,0.03220532]
[1726017615845,0.0031706,57761.0,57760.0,0.20533532]
[1726017616050,0.0031706,57761.0,57760.0,0.19513]
[1726017616440,0.0031706,57761.0,57760.0,0.03220622]
[1726017616599,0.1762976,57761.0,57760.0,0.03220622]
[1726017616804,0.5828516,57761.0,57760.0,0.022]
[1726017617047,1.3051596,57761.0,57760.0,0.022]
[1726017617266,0.9589056,57761.0,57760.0,0.022]
[1726017618093,0.4522473,57761.0,57760.0,0.009]
[1726017618318,0.173132,57760.0,57745.0,0.05157374]
[1726017618533,0.173132,57760.0,57756.0,0.173139]
[1726017618950,0.1476706,57761.0,57749.0,0.00346276]
[1726017618951,0.173133,57759.0,57755.0,0.173145]
[1726017620454,0.1456706,57761.0,57755.0,0.005]
[1726017620667,0.233442,57756.0,57755.0,0.005]
[1726017620900,1.0602091,57756.0,57755.0,0.005]
[1726017621100,0.233442,57756.0,57755.0,0.005]
[1726017621835,0.233442,57756.0,57755.0,0.012]
[1726017622059,0.233442,57756.0,57755.0,0.02]
[1726017623453,0.579726,57756.0,57755.0,0.02]
[1726017626868,0.0031706,57761.0,57760.0,0.17313]
[1726017627356,0.0031706,57761.0,57760.0,0.1869375]
[1726017627598,0.0031706,57761.0,57760.0,0.18347499]
[1726017628274,0.0031706,57761.0,57760.0,0.18947499]
[1726017628743,0.0031706,57761.0,57760.0,0.19147499]
[1726017631211,0.0031706,57761.0,57760.0,0.01834499]
[1726017632331,0.0031706,57761.0,57760.0,0.19147499]
[1726017634948,0.0031706,57761.0,57760.0,0.01834499]
[1726017635169,0.1762976,57761.0,57760.0,0.01834499]
[1726017635413,0.2421976,57761.0,57760.0,0.01834499]
[1726017635636,0.2421976,57761.0,57760.0,0.008]
[1726017636021,0.5884516,57761.0,57760.0,0.008]
[1726017636230,0.0690706,57761.0,57760.0,0.008]
[1726017640102,1.0681553,57761.0,57760.0,0.008]
[1726017640344,1.0681553,57761.0,57760.0,0.02054702]
[1726017640544,1.0681553,57761.0,57760.0,0.008]
[1726017641652,1.06797194,57761.0,57760.0,0.008]
[1726017641938,0.06888724,57761.0,57760.0,0.008]
[1726017643041,0.00298724,57761.0,57760.0,0.18113]
[1726017643473,0.00298724,57761.0,57760.0,0.19373321]
[1726017646830,0.00298724,57761.0,57760.0,0.66917769]
[1726017647079,0.00298724,57761.0,57760.0,1.06927149]
[1726017647283,0.00298724,57761.0,57760.0,1.01232962]
[1726017647729,0.00298724,57761.0,57760.0,1.20273392]
[1726017647992,0.00298724,57761.0,57760.0,1.10115325]
[1726017648200,0.00298724,57761.0,57760.0,1.22257742]
[1726017648406,0.00298724,57761.0,57760.0,1.11515325]
[1726017649073,0.00298724,57761.0,57760.0,1.17515325]
[1726017649335,0.00082,57765.0,57764.0,0.5046223]
[1726017649559,0.00082,57765.0,57764.0,1.08053804]
[1726017649755,0.00082,57765.0,57764.0,1.09308139]
[1726017651510,0.00082,57765.0,57764.0,1.12008139]
[1726017652356,0.00082,57765.0,57764.0,1.26089462]
[1726017652797,0.00082,57765.0,57764.0,1.25515578]
[1726017653013,0.00082,57765.0,57764.0,1.26915578]
[1726017653201,0.00082,57765.0,57764.0,1.13999534]
[1726017653443,0.00082,57765.0,57764.0,1.25515578]
[1726017653647,0.00082,57765.0,57764.0,1.13999534]
[1726017654100,0.00082,57765.0,57764.0,1.26911809]
[1726017654338,0.00082,57765.0,57764.0,1.24111809]
[1726017654523,0.00082,57765.0,57764.0,1.26911809]
[1726017655195,0.00082,57765.0,57764.0,1.24325528]
[1726017655419,0.00082,57765.0,57764.0,1.24125528]
[1726017655705,0.00082,57765.0,57764.0,1.24325528]
[1726017655922,0.00082,57765.0,57764.0,1.21525528]
[1726017656134,0.00082,57765.0,57764.0,0.83856208]
[1726017656339,0.00082,57765.0,57764.0,0.77510583]
[1726017656550,0.00082,57765.0,57764.0,0.82673773]
[1726017656774,0.00082,57765.0,57764.0,0.84073773]
[1726017657191,0.00082,57765.0,57764.0,0.82673773]
[1726017657411,0.00082,57765.0,57764.0,0.84073773]
[1726017657636,0.00082,57765.0,57764.0,0.86373773]
[1726017657864,0.00082,57765.0,57764.0,0.70333343]
[1726017658314,0.00082,57765.0,57764.0,0.65170153]
[1726017658775,0.53118957,57765.0,57764.0,0.08411935]
[1726017659014,1.30314957,57765.0,57764.0,0.04054335]
[1726017659228,1.30314957,57765.0,57764.0,0.028]
[1726017659229,0.95691957,57765.0,57764.0,0.028]
[1726017659690,1.30314957,57765.0,57764.0,0.028]
[1726017660150,1.64937957,57765.0,57764.0,0.014]
[1726017660619,1.64937957,57765.0,57740.0,0.58872518]
[1726017660620,0.173154,57752.0,57747.0,0.173167]
[1726017660857,0.173154,57752.0,57740.0,0.58872518]
[1726017660858,0.064,57752.0,57740.0,0.58872518]
[1726017661075,0.064,57752.0,57735.0,0.07745625]
[1726017661076,0.410312,57752.0,57741.0,0.01440954]
[1726017661300,0.173167,57748.0,57741.0,0.01440954]
[1726017661511,0.410312,57752.0,57743.0,0.173179]
[1726017661717,0.173167,57748.0,57735.0,0.0609]
[1726017661936,0.410312,57752.0,57742.0,0.173183]
[1726017661937,0.173173,57746.0,57742.0,0.173183]
[1726017662158,0.173173,57746.0,57736.0,0.17594018]
[1726017662159,0.173199,57737.0,57736.0,0.01462418]
[1726017662585,0.173199,57737.0,57732.0,0.0041655]
[1726017662586,0.0795,57739.0,57735.0,0.173203]
[1726017662790,0.0795,57739.0,57732.0,0.0041655]
[1726017662791,0.173197,57738.0,57736.0,0.01462418]
[1726017663013,0.0795,57739.0,57732.0,0.0041655]
[1726017663258,0.173203,57736.0,57732.0,0.0041655]
[1726017664302,0.173203,57736.0,57732.0,0.0061655]
[1726017664730,0.173203,57736.0,57732.0,0.0041655]
[1726017665137,0.173203,57736.0,57732.0,0.0091655]
[1726017665560,0.173206,57735.0,57732.0,0.0091655]
[1726017665767,0.1732,57737.0,57732.0,0.0091655]
[1726017666189,0.173203,57736.0,57732.0,0.0091655]
[1726017666396,0.173205,57735.0,57732.0,0.0041655]
[1726017666802,0.173211,57733.0,57732.0,0.0101655]
[1726017667226,0.583633,57733.0,57732.0,0.0101655]
[1726017667431,0.930055,57733.0,57732.0,0.0101655]
[1726017667638,1.009555,57733.0,57732.0,0.0101655]
[1726017667842,1.009555,57733.0,57732.0,0.0041655]
[1726017668047,1.010555,57733.0,57732.0,0.0151655]
[1726017668307,1.356977,57733.0,57732.0,0.0151655]
[1726017669621,1.355977,57733.0,57732.0,0.0071655]
[1726017670062,1.49362503,57733.0,57732.0,0.0071655]
[1726017670977,1.49362503,57733.0,57732.0,0.0041655]
[1726017671184,1.49562503,57733.0,57732.0,0.0041655]
[1726017671439,1.84204703,57733.0,57732.0,0.0041655]
[1726017671675,0.4791363,57726.0,57725.0,0.001642]
[1726017671894,1.65722655,57726.0,57725.0,0.001642]
[1726017672107,2.00369055,57726.0,57725.0,0.001642]
[1726017672317,1.8629273,57721.0,57709.0,0.0025255]
[1726017672536,1.75388186,57721.0,57709.0,0.0025255]
[1726017672735,0.314547,57721.0,57713.0,0.173269]
[1726017672962,0.314547,57721.0,57712.0,0.173271]
[1726017672963,0.661041,57721.0,57712.0,0.173271]
[1726017673173,1.007535,57721.0,57711.0,0.173274]
[1726017673387,1.007535,57721.0,57712.0,0.173273]
[1726017673835,1.007535,57721.0,57713.0,0.17327]
[1726017674043,1.007535,57721.0,57709.0,0.0025255]
[1726017674044,0.661041,57721.0,57709.0,0.0025255]
[1726017674254,0.928035,57721.0,57712.0,0.173271]
[1726017674470,0.581541,57721.0,57712.0,0.173271]
[1726017674866,0.928035,57721.0,57712.0,0.173271]
[1726017675107,0.581541,57721.0,57712.0,0.173271]
[1726017675310,0.581541,57721.0,57714.0,0.173267]
[1726017675560,0.931035,57721.0,57713.0,0.17327]
[1726017675769,0.931035,57721.0,57711.0,0.173274]
[1726017676409,0.931035,57721.0,57720.0,0.0045255]
[1726017677266,0.931035,57721.0,57720.0,0.0025255]
[1726017677467,1.0914393,57721.0,57720.0,0.0045255]
[1726017678085,1.0884393,57721.0,57720.0,0.0045255]
[1726017678498,1.0914393,57721.0,57720.0,0.0045255]
[1726017678908,1.4379333,57721.0,57720.0,0.0045255]
[1726017679123,1.4379333,57721.0,57720.0,0.0025255]
[1726017679124,1.57438186,57721.0,57720.0,0.0025255]
[1726017679328,1.57738186,57721.0,57720.0,0.0025255]
[1726017679540,1.58338186,57721.0,57720.0,0.0035255]
[1726017679954,1.57438186,57721.0,57720.0,0.0025255]
[1726017680162,1.57738186,57721.0,57720.0,0.0025255]
[1726017680602,1.74306005,57721.0,57720.0,0.0025255]
[1726017680819,1.92446005,57721.0,57720.0,0.0025255]
[1726017681177,2.27095405,57721.0,57720.0,0.0025255]
[1726017681578,2.27695405,57721.0,57720.0,0.0035255]
[1726017681846,2.27495405,57721.0,57720.0,0.0035255]
[1726017681979,1.76278186,57721.0,57720.0,0.0035255]
[1726017683677,1.5164643,57710.0,57709.0,0.0025255]
[1726017683920,1.65756401,57710.0,57709.0,0.0025255]
[1726017684128,2.48268401,57710.0,57709.0,0.0025255]
[1726017684350,2.64864041,57710.0,57709.0,0.0025255]
[1726017684555,2.48268401,57710.0,57709.0,0.0025255]
[1726017684758,2.10612401,57710.0,57709.0,0.0025255]
[1726017684994,2.10412401,57710.0,57709.0,0.0025255]
[1726017685205,1.75756401,57710.0,57709.0,0.0025255]
[1726017685410,2.10412401,57710.0,57709.0,0.0025255]
[1726017685618,2.11212401,57710.0,57709.0,0.0035255]
[1726017685800,2.11012401,57710.0,57709.0,0.0035255]
[1726017686044,2.11012401,57710.0,57709.0,0.0025255]
[1726017686519,2.11012401,57710.0,57709.0,0.0035255]
[1726017686520,2.12012401,57710.0,57709.0,0.0035255]
[1726017686869,2.12612401,57710.0,57709.0,0.0045255]
[1726017687100,2.11612401,57710.0,57709.0,0.0035255]
[1726017687551,2.12712401,57710.0,57709.0,0.0045255]
[1726017687970,2.11512401,57710.0,57709.0,0.0035255]
[1726017688344,2.12912401,57710.0,57709.0,0.0045255]
[1726017688550,2.11512401,57710.0,57709.0,0.0035255]
[1726017688949,2.12912401,57710.0,57709.0,0.0045255]
[1726017689151,2.10412401,57710.0,57709.0,0.0025255]
[1726017689514,2.12912401,57710.0,57709.0,0.0045255]
[1726017689975,2.11512401,57710.0,57709.0,0.0035255]
[1726017690197,2.10412401,57710.0,57709.0,0.0025255]
[1726017690536,2.10412401,57710.0,57709.0,0.0035255]
[1726017690537,2.28829356,57710.0,57709.0,0.0035255]
[1726017690768,2.72485356,57710.0,57709.0,0.0035255]
[1726017690996,1.351407,57703.0,57702.0,0.001638]
[1726017691232,1.75396207,57703.0,57702.0,0.001638]
[1726017691437,2.10056407,57703.0,57702.0,0.001638]
[1726017691644,2.27673362,57703.0,57702.0,0.001638]
[1726017691875,2.10056407,57703.0,57702.0,0.001638]
[1726017692123,2.13056407,57703.0,57702.0,0.001638]
[1726017692334,2.47716607,57703.0,57702.0,0.001638]
[1726017692530,2.48316607,57703.0,57702.0,0.002638]
[1726017692689,2.47716607,57703.0,57702.0,0.001638]
[1726017692903,2.63034476,57703.0,57702.0,0.001638]
[1726017693060,2.63034476,57703.0,57702.0,0.002638]
[1726017693061,2.64034476,57703.0,57702.0,0.002638]
[1726017693458,1.560006,57692.0,57691.0,0.0001]
[1726017693678,1.560006,57692.0,57687.0,0.001638]
[1726017693679,0.552038,57688.0,57687.0,0.001638]
[1726017693947,2.03522219,57688.0,57687.0,0.01494791]
[1726017694183,2.31139174,57688.0,57687.0,0.01494791]
[1726017694413,2.31139174,57688.0,57687.0,0.001638]
[1726017694872,2.13522219,57688.0,57687.0,0.001638]
[1726017695083,2.13522219,57688.0,57687.0,0.0029999]
[1726017695521,1.01113389,57688.0,57687.0,0.0029999]
[1726017695738,0.66844189,57688.0,57687.0,0.0029999]
[1726017695949,1.01113389,57688.0,57687.0,0.0029999]
[1726017696173,1.01813389,57688.0,57687.0,0.0039999]
[1726017696386,1.36482589,57688.0,57687.0,0.0039999]
[1726017696588,1.41892589,57688.0,57687.0,0.0029999]
[1726017697017,1.53257703,57688.0,57687.0,0.0029999]
[1726017697229,1.97926903,57688.0,57687.0,0.0029999]
[1726017697900,2.01126903,57688.0,57687.0,0.0029999]
[1726017698128,2.14846903,57688.0,57687.0,0.0029999]
[1726017698351,2.15246903,57688.0,57687.0,0.0029999]
[1726017698588,2.16146903,57688.0,57687.0,0.0039999]
[1726017698798,2.14846903,57688.0,57687.0,0.0029999]
[1726017699015,2.16246903,57688.0,57687.0,0.0049999]
[1726017699223,2.17246903,57688.0,57687.0,0.0049999]
[1726017702722,2.51916103,57688.0,57687.0,0.0049999]
[1726017702916,1.9512423,57676.0,57674.0,0.001638]
[1726017703121,2.09854777,57676.0,57674.0,0.001638]
[1726017703326,2.19854777,57676.0,57674.0,0.001638]
[1726017703739,2.19654777,57676.0,57674.0,0.001638]
[1726017703946,1.68138377,57676.0,57674.0,0.001638]
[1726017704162,1.11221547,57676.0,57674.0,0.001638]
[1726017704771,1.11221547,57676.0,57675.0,0.0083756]
[1726017705009,1.11421547,57676.0,57675.0,0.0083756]
[1726017705222,0.66545147,57676.0,57675.0,0.0704756]
[1726017705439,1.01221547,57676.0,57675.0,0.0674756]
[1726017705683,1.01621547,57676.0,57675.0,0.0684756]
[1726017705902,1.01221547,57676.0,57675.0,0.0684756]
[1726017706101,1.01421547,57676.0,57675.0,0.0674756]
[1726017706531,1.01421547,57676.0,57675.0,0.0694756]
[1726017707177,1.01421547,57676.0,57675.0,0.0073756]
[1726017707618,1.51311635,57676.0,57675.0,0.0073756]
[1726017708245,1.51311635,57676.0,57675.0,0.0053756]
[1726017708458,1.51111635,57676.0,57675.0,0.0053756]
[1726017708697,1.70574347,57676.0,57675.0,0.00504592]
[1726017709190,1.35897947,57676.0,57675.0,0.00504592]
[1726017709412,1.35897947,57676.0,57675.0,0.00668792]
[1726017710060,1.76774347,57676.0,57675.0,0.00668792]
[1726017710273,2.21231302,57676.0,57675.0,0.00668792]
[1726017710503,2.21431302,57676.0,57675.0,0.00668792]
[1726017711374,2.21531302,57676.0,57675.0,0.01268792]
[1726017711810,2.21531302,57676.0,57675.0,0.00668792]
[1726017712019,2.21431302,57676.0,57675.0,0.00668792]
[1726017712241,2.21531302,57676.0,57675.0,0.00668792]
[1726017712448,2.26556262,57676.0,57675.0,0.00668792]
[1726017712677,2.27056262,57676.0,57675.0,0.00668792]
[1726017712911,2.27056262,57676.0,57671.0,0.0001]
[1726017712912,0.438788,57672.0,57671.0,0.0001]
[1726017713187,0.438788,57672.0,57653.0,0.0621]
[1726017713188,0.520263,57663.0,57653.0,0.0621]
[1726017713427,1.52183635,57663.0,57652.0,0.0826867]
[1726017713652,1.97067835,57663.0,57652.0,0.0826867]
[1726017713863,2.03067835,57663.0,57652.0,0.0021867]
[1726017714500,2.2068479,57663.0,57652.0,0.0021867]
[1726017715175,2.03067835,57663.0,57652.0,0.0021867]
[1726017715375,2.04167835,57663.0,57652.0,0.0021867]
[1726017715829,2.04967835,57663.0,57662.0,0.002638]
[1726017716272,2.04767835,57663.0,57662.0,0.002638]
[1726017716575,1.63883635,57663.0,57662.0,0.002638]
[1726017716780,1.47843205,57663.0,57662.0,0.002638]
[1726017717008,1.63883635,57663.0,57662.0,0.002638]
[1726017718251,0.346868,57659.0,57654.0,0.0763269]
[1726017718456,0.173439,57657.0,57654.0,0.0763269]
[1726017718669,0.363842,57663.0,57656.0,0.0621]
[1726017718892,0.14861286,57662.0,57656.0,0.0621]
[1726017719108,0.17343,57660.0,57657.0,0.173438]
[1726017719327,0.32219325,57660.0,57657.0,0.01406684]
[1726017719566,0.008,57659.0,57657.0,0.173437]
[1726017719782,0.181433,57659.0,57658.0,0.01406684]
[1726017719993,0.179433,57659.0,57658.0,0.01406684]
[1726017720216,0.006,57659.0,57656.0,0.235542]
[1726017720434,0.006,57659.0,57658.0,0.01406684]
[1726017720691,0.179433,57659.0,57656.0,0.235542]
[1726017720961,0.006,57659.0,57658.0,0.01406684]
[1726017721201,0.006,57659.0,57657.0,0.173436]
[1726017721410,0.14876325,57660.0,57658.0,0.01406684]
[1726017721625,0.32219525,57660.0,57658.0,0.01406684]
[1726017721835,0.15176325,57660.0,57656.0,0.0621]
[1726017722049,0.15176325,57660.0,57659.0,0.26799984]
[1726017722050,0.003,57660.0,57659.0,0.26799984]
[1726017722257,0.346825,57666.0,57659.0,0.0805]
[1726017722470,0.173418,57664.0,57661.0,0.0621]
[1726017722688,0.3215797,57664.0,57661.0,0.0621]
[1726017722907,0.173421,57663.0,57662.0,0.01406684]
[1726017723299,1.0152667,57663.0,57662.0,0.01406684]
[1726017723528,0.520299,57659.0,57658.0,0.001642]
[1726017723777,1.36279425,57659.0,57658.0,0.001642]
[1726017724730,1.01592825,57659.0,57658.0,0.001642]
[1726017725188,1.01692825,57659.0,57658.0,0.002642]
[1726017725406,1.01592825,57659.0,57658.0,0.001642]
[1726017725850,1.01592825,57659.0,57658.0,0.002642]
[1726017725851,1.01692825,57659.0,57658.0,0.002642]
[1726017726057,1.52419855,57659.0,57658.0,0.002642]
[1726017726265,1.67661671,57659.0,57658.0,0.002642]
[1726017726490,1.69459855,57659.0,57658.0,0.002642]
[1726017726733,2.20146455,57659.0,57658.0,0.002642]
[1726017726945,2.22746455,57659.0,57658.0,0.006642]
[1726017727168,2.22746455,57659.0,57634.0,0.0805]
[1726017727169,0.203469,57647.0,57631.0,0.0032889]
[1726017727407,1.55525871,57647.0,57631.0,0.0032889]
[1726017727624,2.20032358,57647.0,57631.0,0.0032889]
[1726017727856,1.214601,57632.0,57631.0,0.0032889]
[1726017728090,1.52783121,57632.0,57631.0,0.0032889]
[1726017728332,1.58983121,57632.0,57631.0,0.0032889]
[1726017728575,1.78965433,57632.0,57631.0,0.0032889]
[1726017728841,1.71983121,57632.0,57631.0,0.0032889]
[1726017729044,1.72083121,57632.0,57631.0,0.0032889]
[1726017729283,1.71983121,57632.0,57631.0,0.0022577]
[1726017730195,1.78127917,57632.0,57631.0,0.0022577]
[1726017730424,1.86984299,57632.0,57631.0,0.0022577]
[1726017730849,1.41125017,57632.0,57631.0,0.0022577]
[1726017731127,0.15982591,57632.0,57631.0,0.0022577]
[1726017731371,0.16082591,57632.0,57631.0,0.2562747]
[1726017731580,0.16082591,57632.0,57631.0,0.0827577]
[1726017731807,0.16882591,57632.0,57631.0,0.0973046]
[1726017732012,0.18182591,57632.0,57631.0,0.0973046]
[1726017732246,0.33433991,57632.0,57631.0,0.0973046]
[1726017732496,0.17282591,57632.0,57631.0,0.0973046]
[1726017732943,0.16082591,57632.0,57631.0,0.0973046]
[1726017733152,0.16082591,57632.0,57631.0,0.3210747]
[1726017733370,0.16082591,57632.0,57631.0,0.3227167]
[1726017733586,0.15282591,57632.0,57631.0,0.1637466]
[1726017733801,0.16082591,57632.0,57631.0,0.1637466]
[1726017734018,0.16082591,57632.0,57631.0,0.3372636]
[1726017734233,0.008,57632.0,57631.0,0.3227167]
[1726017734463,0.4768,57646.0,57635.0,0.173504]
[1726017734693,0.346958,57644.0,57636.0,0.01449217]
[1726017734910,0.173488,57641.0,57631.0,0.1511997]
[1726017735145,0.15214854,57640.0,57631.0,0.1511997]
[1726017735381,0.15214854,57640.0,57631.0,0.3237167]
[1726017735382,0.001,57632.0,57631.0,0.3237167]
[1726017735622,0.32563954,57640.0,57631.0,0.1491997]
[1726017735853,0.32563954,57640.0,57636.0,0.173502]
[1726017736304,0.32563954,57640.0,57637.0,0.01449217]
[1726017736511,0.173502,57636.0,57635.0,0.0021577]
[1726017736722,0.89458306,57636.0,57635.0,0.0021577]
[1726017736961,1.24158806,57636.0,57635.0,0.0021577]
[1726017737398,1.0197358,57636.0,57635.0,0.0021577]
[1726017738040,1.0207358,57636.0,57635.0,0.0031577]
[1726017738473,1.35945164,57636.0,57635.0,0.0031577]
[1726017738741,1.70645664,57636.0,57635.0,0.0061577]
[1726017738941,3.19706664,57636.0,57635.0,0.0061577]
[1726017739174,0.959572,57632.0,57631.0,0.001742]
[1726017739387,1.92915484,57632.0,57631.0,0.001742]
[1726017739600,1.015682,57618.0,57611.0,0.0001]
[1726017739829,1.247021,57612.0,57611.0,0.0001]
[1726017740038,1.62425911,57612.0,57611.0,0.0001]
[1726017740279,1.72425911,57612.0,57611.0,0.0001]
[1726017740479,1.72225911,57612.0,57611.0,0.0001]
[1726017740708,1.69225911,57612.0,57611.0,0.0001]
[1726017740932,1.72225911,57612.0,57611.0,0.0001]
[1726017741362,1.73125911,57612.0,57611.0,0.0001]
[1726017741813,1.69225911,57612.0,57611.0,0.0001]
[1726017742049,1.34511011,57612.0,57611.0,0.0001]
[1726017742677,1.35711011,57612.0,57611.0,0.0001]
[1726017742914,1.34511011,57612.0,57611.0,0.0001]
[1726017743158,1.36611011,57612.0,57611.0,0.0001]
[1726017743618,1.70625911,57612.0,57611.0,0.0001]
[1726017744072,1.71525911,57612.0,57611.0,0.0001]
[1726017744292,1.36811011,57612.0,57611.0,0.0001]
[1726017744535,1.34511011,57612.0,57611.0,0.0001]
[1726017744763,1.86577012,57612.0,57611.0,0.0001]
[1726017744993,1.87977012,57612.0,57611.0,0.0001]
[1726017745261,1.86577012,57612.0,57611.0,0.0001]
[1726017745483,1.87577012,57612.0,57611.0,0.0001]
[1726017745708,2.21291912,57612.0,57611.0,0.0001]
[1726017745917,1.86577012,57612.0,57611.0,0.0001]
[1726017746148,1.74225911,57612.0,57611.0,0.001742]
[1726017746372,1.30713,57607.0,57606.0,0.0021867]
[1726017746617,0.95998,57605.0,57604.0,0.00164]
[1726017746845,1.91125638,57605.0,57604.0,0.00164]
[1726017747059,2.02813149,57605.0,57604.0,0.00164]
[1726017747478,1.215445,57592.0,57591.0,0.0001]
[1726017747708,1.94341893,57592.0,57591.0,0.0001]
[1726017747904,2.05001893,57592.0,57591.0,0.0001]
[1726017748119,2.10433622,57592.0,57591.0,0.0001]
[1726017748371,2.16433622,57592.0,57591.0,0.0001]
[1726017748615,1.47429667,57592.0,57591.0,0.0001]
[1726017748847,1.86156667,57592.0,57591.0,0.0001]
[1726017749059,1.92156667,57592.0,57591.0,0.0001]
[1726017749277,1.90556667,57592.0,57591.0,0.0001]
[1726017749501,2.09773622,57592.0,57591.0,0.0001]
[1726017750166,2.08773622,57592.0,57591.0,0.0001]
[1726017750395,2.11073622,57592.0,57591.0,0.0001]
[1726017750620,2.12473622,57592.0,57591.0,0.0001]
[1726017750837,1.93956667,57592.0,57591.0,0.0001]
[1726017751088,1.91156667,57592.0,57591.0,0.0001]
[1726017751315,1.93556667,57592.0,57591.0,0.0001]
[1726017751837,1.592958,57583.0,57582.0,0.0060658]
[1726017752085,1.62701635,57583.0,57582.0,0.0060658]
[1726017752272,1.72701635,57583.0,57582.0,0.0060658]
[1726017753370,1.69701635,57583.0,57582.0,0.0060658]
[1726017753789,0.68051609,57583.0,57582.0,0.0060658]
[1726017754020,0.68051609,57583.0,57582.0,0.0853658]
[1726017754226,0.68051609,57583.0,57582.0,0.1517658]
[1726017754227,0.18053009,57583.0,57582.0,0.1517658]
[1726017754450,0.021,57583.0,57582.0,0.3254308]
[1726017754666,0.013,57583.0,57582.0,0.33520397]
[1726017754885,0.026,57583.0,57582.0,0.33520397]
[1726017755099,0.22185226,57600.0,57582.0,0.16153897]
[1726017755100,0.173643,57590.0,57582.0,0.16153897]
[1726017755303,0.347273,57592.0,57585.0,0.173655]
[1726017755304,0.15968087,57589.0,57585.0,0.173655]
[1726017755513,0.15968087,57589.0,57586.0,0.00973944]
[1726017755728,0.15968087,57589.0,57582.0,0.1517658]
[1726017756155,0.15968087,57589.0,57583.0,0.0793]
[1726017756373,0.15968087,57589.0,57587.0,0.173648]
[1726017756581,0.15968087,57589.0,57588.0,0.173647]
[1726017756795,0.22185226,57605.0,57584.0,0.0793]
[1726017757017,0.15855018,57602.0,57589.0,0.1457]
[1726017757250,0.22185226,57599.0,57589.0,0.1457]
[1726017757456,0.173638,57591.0,57590.0,0.00966803]
[1726017757673,0.33264042,57591.0,57590.0,0.00966803]
[1726017757891,0.173656,57585.0,57584.0,0.0793]
[1726017758132,0.15990704,57585.0,57584.0,0.08896803]
[1726017758997,0.011,57591.0,57586.0,0.17365]
[1726017759209,0.173649,57588.0,57584.0,0.08896803]
[1726017759442,0.15968087,57587.0,57584.0,0.0793]
[1726017759648,0.15968087,57587.0,57586.0,0.001644]
[1726017760108,1.02793087,57587.0,57586.0,0.001644]
[1726017760741,1.02893087,57587.0,57586.0,0.001644]
[1726017760942,1.02893087,57587.0,57586.0,0.003644]
[1726017761158,0.68063087,57587.0,57586.0,0.001644]
[1726017761375,0.33333087,57587.0,57586.0,0.001644]
[1726017761597,0.34333087,57587.0,57586.0,0.01231203]
[1726017761799,0.69063087,57587.0,57586.0,0.001644]
[1726017762046,0.69063087,57587.0,57586.0,0.01131203]
[1726017762248,0.69063087,57587.0,57586.0,0.001644]
[1726017762625,0.16968087,57587.0,57586.0,0.001644]
[1726017762832,0.16668087,57587.0,57586.0,0.01124239]
[1726017763043,0.16668087,57587.0,57586.0,0.001644]
[1726017763313,0.17768087,57587.0,57586.0,0.002644]
[1726017763511,0.17768087,57587.0,57586.0,0.001644]
[1726017763512,1.03893087,57587.0,57586.0,0.001644]
[1726017763740,1.03493087,57587.0,57586.0,0.001644]
[1726017763970,1.04493087,57587.0,57586.0,0.002644]
[1726017764180,0.33833087,57587.0,57586.0,0.002644]